bitfinex/quotes_SOLUSD_20260228
["timestamp","ask_amount","ask_price","bid_price","bid_amount"]
[1772282476623,0.89008351,79.094,79.065,1.26652715]
[1772282478335,0.89008351,79.094,79.071,1.26652715]
[1772282479040,0.89008351,79.094,79.072,1.26652715]
[1772282482445,0.88378901,79.092,79.072,1.26652715]
[1772282489838,0.87697617,79.09,79.063,1.26652715]
[1772282490038,0.8760471,79.088,79.063,1.26652715]
[1772282490239,0.8760471,79.088,79.065,1.26652715]
[1772282491644,0.87512871,79.096,79.071,1.26652715]
[1772282492447,0.87512871,79.096,79.073,1.26652715]
[1772282494135,0.87512871,79.096,79.075,1.26652715]
[1772282495354,165.93685884,79.15,79.074,12.64638187]
[1772282495355,0.87155942,79.109,79.081,1.26652715]
[1772282496440,0.87069258,79.108,79.081,12.64525143]
[1772282496635,0.87069258,79.108,79.082,1.26652715]
[1772282497735,0.86898864,79.106,79.082,1.26652715]
[1772282499940,0.86732362,79.104,79.082,1.26652715]
[1772282505558,12.64078676,79.109,79.082,1.26652715]
[1772282505751,0.86178987,79.119,79.091,1.36796999]
[1772282506658,0.86178987,79.119,79.08,6.39250376]
[1772282506863,0.86028927,79.099,79.074,1.0]
[1772282507037,0.86028927,79.099,79.075,1.36796999]
[1772282508051,6.39250376,79.11,79.075,1.36796999]
[1772282508052,0.85955188,79.097,79.075,1.36796999]
[1772282509961,0.85955188,79.097,79.071,1.36796999]
[1772282510167,0.85810239,79.095,79.071,1.36796999]
[1772282512757,0.85668601,79.093,79.071,1.36796999]
[1772282515159,0.85462187,79.091,79.071,1.36796999]
[1772282515365,0.85462187,79.091,79.072,1.36796999]
[1772282515562,0.85462187,79.101,79.072,1.36796999]
[1772282515753,0.85394957,79.109,79.081,1.36796999]
[1772282517360,12.64070222,79.11,79.083,1.36796999]
[1772282518286,0.85262804,79.109,79.083,1.36796999]
[1772282519565,0.85197864,79.126,79.091,1.36796999]
[1772282520061,12.6379112,79.127,79.091,1.36796999]
[1772282520062,0.8513367,79.119,79.091,1.36796999]
[1772282520657,0.8513367,79.117,79.093,1.36796999]
[1772282521775,0.8513367,79.117,79.084,1.36796999]
[1772282521963,0.85007485,79.109,79.084,1.36796999]
[1772282522949,12.64094655,79.108,79.084,1.36796999]
[1772282523154,0.84945477,79.107,79.084,1.36796999]
[1772282523774,0.84945477,79.107,79.086,1.36796999]
[1772282523960,0.84884182,79.111,79.086,1.36796999]
[1772282525795,0.84884182,79.111,79.087,12.6443031]
[1772282525978,0.84884182,79.111,79.088,1.36796999]
[1772282526577,0.84763695,79.109,79.088,1.36796999]
[1772282531681,0.84418497,79.107,79.088,1.36796999]
[1772282532258,0.84363254,79.119,79.09,1.29005474]
[1772282533581,0.84308646,79.116,79.09,1.29005474]
[1772282533974,0.84254666,79.114,79.09,1.29005474]
[1772282535683,12.64014763,79.113,79.09,1.29005474]
[1772282535870,0.84201305,79.112,79.09,1.29005474]
[1772282539091,0.83993921,79.11,79.09,1.29005474]
[1772282541994,0.83844553,79.108,79.09,1.29005474]
[1772282545082,0.83700272,79.106,79.09,1.29005474]
[1772282547996,12.64142595,79.105,79.09,1.29005474]
[1772282548198,0.83560906,79.104,79.09,1.29005474]
[1772282554693,0.83296255,79.108,79.09,1.29005474]
[1772282555704,12.64110634,79.107,79.09,1.29005474]
[1772282555904,0.83212037,79.106,79.09,1.29005474]
[1772282558187,12.64056728,79.111,79.09,1.29005474]
[1772282558395,13.4718647,79.111,79.09,1.29005474]
[1772282561407,0.82970748,79.11,79.09,1.29005474]
[1772282562210,0.82932135,79.115,79.09,1.29005474]
[1772282562513,0.82932135,79.115,79.092,1.27408756]
[1772282563907,0.82818934,79.113,79.092,1.27408756]
[1772282566106,12.64030741,79.112,79.092,1.27408756]
[1772282566309,13.46776359,79.112,79.092,1.27408756]
[1772282567096,0.8270959,79.116,79.092,1.27408756]
[1772282567490,6.38994301,79.12,79.092,1.27408756]
[1772282567691,12.63759178,79.129,79.094,1.26783226]
[1772282567896,12.63759178,79.129,79.101,1.26783226]
[1772282568097,0.82673976,79.128,79.102,12.64190538]
[1772282568310,0.82673976,79.128,79.103,1.26783226]
[1772282569609,0.82638771,79.126,79.103,1.26783226]
[1772282571498,0.8256957,79.124,79.103,1.26783226]
[1772282573802,12.6385501,79.123,79.103,1.26783226]
[1772282573998,0.8246872,79.122,79.103,1.26783226]
[1772282575023,12.63886957,79.121,79.103,1.26783226]
[1772282575215,0.82435873,79.12,79.103,1.26783226]
[1772282578014,12.63918906,79.119,79.103,1.26783226]
[1772282578215,13.46258483,79.119,79.103,1.26783226]
[1772282578405,0.82339577,79.118,79.103,1.26783226]
[1772282580720,0.82339577,79.118,79.095,1.26783226]
[1772282580928,0.82246562,79.116,79.084,1.26783226]
[1772282581123,44.23828,79.117,79.084,1.26783226]
[1772282581124,0.82246562,79.109,79.084,1.26783226]
[1772282581716,13.46341217,79.108,79.084,1.26783226]
[1772282582611,13.46341217,79.108,79.084,13.91250342]
[1772282582808,13.46341217,79.108,79.085,1.26783226]
[1772282583431,0.82186318,79.107,79.085,1.26783226]
[1772282586332,0.82098523,79.115,79.091,1.26783226]
[1772282588937,0.82013719,79.119,79.093,1.26783226]
[1772282590025,0.81986098,79.117,79.093,1.26783226]
[1772282591812,3.69383402,79.142,79.096,1.22415206]
[1772282592034,0.81905123,79.126,79.096,1.22415206]
[1772282592221,0.81905123,79.126,79.098,1.22415206]
[1772282592929,0.81878749,79.124,79.098,1.22415206]
[1772282594234,0.81852678,79.122,79.098,1.22415206]
[1772282594435,0.81852678,79.119,79.089,1.22415206]
[1772282600619,0.81702422,79.117,79.089,1.22415206]
[1772282601940,0.81702422,79.117,79.091,1.22415206]
[1772282602731,0.81654607,79.115,79.091,1.22415206]
[1772282605118,13.4558371,79.114,79.091,1.22415206]
[1772282607526,12.63759178,79.129,79.101,1.22415206]
[1772282609642,12.63695297,79.133,79.103,1.22415206]
[1772282610546,13.45169318,79.133,79.103,1.22415206]
[1772282611233,12.63695297,79.133,79.105,1.22415206]
[1772282611434,0.81452598,79.132,79.105,1.22415206]
[1772282613349,0.81410489,79.13,79.107,1.22415206]
[1772282615751,12.63759178,79.129,79.107,1.22415206]
[1772282617157,13.45088312,79.129,79.107,1.22415206]
[1772282618554,1.21637043,79.119,79.065,1.0]
[1772282618851,1.21637043,79.119,79.08,6.38548985]
[1772282619833,1.21637043,79.119,79.09,6.38548985]
[1772282620547,12.63934882,79.118,79.091,1.2926063]
[1772282620752,1.26479429,79.117,79.091,1.2926063]
[1772282621754,1.26479429,79.117,79.087,1.2926063]
[1772282622137,1.26479429,79.115,79.087,1.2926063]
[1772282626257,1.32627051,79.113,79.087,1.2926063]
[1772282628363,12.64030741,79.112,79.091,1.27914877]
[1772282629859,1.32627051,79.111,79.091,1.27914877]
[1772282630366,12.64030741,79.112,79.091,1.27914877]
[1772282632968,1.32627051,79.112,79.091,1.27914877]
[1772282635171,12.64046719,79.111,79.091,1.27914877]
[1772282635360,1.32627051,79.11,79.091,1.27914877]
[1772282638401,12.64078676,79.109,79.091,1.27914877]
[1772282642358,1.32627051,79.108,79.091,1.27914877]
[1772282643253,13.96737685,79.107,79.091,1.27914877]
[1772282643967,1.32627051,79.106,79.091,1.27914877]
[1772282644464,12.64142595,79.105,79.091,1.27914877]
[1772282644665,1.32627051,79.115,79.091,1.27914877]
[1772282645057,1.32627051,79.114,79.091,1.27914877]
[1772282647380,12.64014763,79.113,79.091,1.27914877]
[1772282649788,1.32627051,79.127,79.101,1.27914877]
[1772282654162,1.29311852,79.13,79.111,1.22886141]
[1772282655577,1.29311852,79.128,79.111,1.22886141]
[1772282658182,1.29311852,79.126,79.111,1.22886141]
[1772282658787,1.29311852,79.126,79.102,1.22886141]
[1772282660574,1.29311852,79.124,79.102,1.22886141]
[1772282660872,1.29311852,79.124,79.091,12.64355399]
[1772282662982,1.29311852,79.122,79.092,1.22886141]
[1772282665281,1.29311852,79.12,79.092,1.22886141]
[1772282668425,1.29311852,79.118,79.092,1.22886141]
[1772282668602,1.29311852,79.118,79.094,1.22886141]
[1772282671300,1.29311852,79.116,79.094,1.22886141]
[1772282673505,1.29311852,79.121,79.1,6.38730674]
[1772282673701,1.29311852,79.125,79.101,1.22886141]
[1772282674004,1.29311852,79.136,79.101,1.22886141]
[1772282675505,1.29311852,79.135,79.103,1.22886141]
[1772282677202,1.29311852,79.135,79.104,12.64158576]
[1772282677203,12.63679328,79.134,79.104,12.64158576]
[1772282677409,1.29311852,79.133,79.105,1.22886141]
[1772282680300,12.63711267,79.132,79.105,1.22886141]
[1772282680612,1.29971255,79.131,79.105,1.22886141]
[1772282683311,1.25485874,79.136,79.111,1.25927032]
[1772282684413,1.25485874,79.136,79.106,1.25927032]
[1772282685191,1.25485874,79.119,79.069,12.64718157]
[1772282685391,1.25485874,79.109,79.07,6.38730674]
[1772282687305,1.25485874,79.107,79.073,0.85011575]
[1772282688220,44.24331293,79.108,79.073,0.85011575]
[1772282688221,1.25485874,79.099,79.073,0.85011575]
[1772282689312,1.25485874,79.097,79.073,0.85011575]
[1772282691517,1.25485874,79.095,79.073,0.85011575]
[1772282693823,1.25485874,79.093,79.073,0.85011575]
[1772282696328,31.60236638,79.108,79.073,0.85011575]
[1772282696329,1.25485874,79.091,79.073,0.85011575]
[1772282698607,1.25485874,79.089,79.073,0.85011575]
[1772282698827,1.25485874,79.089,79.061,0.80532098]
[1772282700514,13.89708377,79.1,79.081,0.79445247]
[1772282700715,1.25485874,79.099,79.081,0.79445247]
[1772282700919,1.25485874,79.103,79.081,0.79445247]
[1772282703503,1.25485874,79.101,79.081,0.79445247]
[1772282704735,8.80272316,79.117,79.091,0.77345448]
[1772282705028,8.0343683,79.117,79.11,6.38730674]
[1772282707711,1.29938464,79.136,79.111,12.64046719]
[1772282707933,1.29938464,79.136,79.12,6.38730674]
[1772282708111,1.29938464,79.136,79.111,12.64046719]
[1772282708510,1.29938464,79.136,79.11,6.38730674]
[1772282708918,1.29938464,79.136,79.11,19.02782318]
[1772282709933,1.29938464,79.136,79.081,63.22558172]
[1772282709934,1.29938464,79.134,79.1,6.38730674]
[1772282710128,1.29938464,79.134,79.11,6.38730674]
[1772282712432,1.29938464,79.132,79.11,6.38730674]
[1772282715017,1.29938464,79.13,79.11,6.38730674]
[1772282716329,1.29938464,79.128,79.1,19.02939631]
[1772282717514,1.29938464,79.128,79.096,12.64279395]
[1772282717713,1.29938464,79.128,79.1,6.38730674]
[1772282717925,1.29938464,79.128,79.093,1.0]
[1772282718128,1.29938464,79.128,79.092,12.64348793]
[1772282718324,1.29938464,79.126,79.092,12.64348793]
[1772282719129,1.29938464,79.126,79.09,6.38730674]
[1772282719335,1.29938464,79.126,79.091,12.64366362]
[1772282722030,12.63823064,79.125,79.091,12.64366362]
[1772282722230,1.29938464,79.124,79.091,12.64366362]
[1772282723338,1.29938464,79.124,79.1,6.38730674]
[1772282723635,1.29938464,79.124,79.091,12.64366362]
[1772282723938,1.29938464,79.119,79.08,6.38730674]
[1772282724139,1.29938464,79.117,79.081,12.64526245]
[1772282726337,1.29938464,79.115,79.081,12.64526245]
[1772282728539,1.29938464,79.113,79.081,12.64526245]
[1772282731444,1.29938464,79.111,79.081,12.64526245]
[1772282733330,1.29938464,79.109,79.081,12.64526245]
[1772282735937,1.29938464,79.107,79.081,12.64526245]
[1772282737928,1.29938464,79.105,79.081,12.64526245]
[1772282740645,1.29938464,79.103,79.081,12.64526245]
[1772282744653,1.29938464,79.103,79.08,6.38898263]
[1772282745553,1.29938464,79.118,79.09,6.38898263]
[1772282746854,1.29938464,79.114,79.09,6.38898263]
[1772282750952,12.64014763,79.113,79.09,6.38898263]
[1772282751150,1.29938464,79.112,79.09,6.38898263]
[1772282757438,1.29938464,79.112,79.09,19.03268847]
[1772282757756,1.29938464,79.11,79.09,6.38898263]
[1772282757952,1.29938464,79.11,79.086,12.64442556]
[1772282759662,1.29938464,79.108,79.081,12.64526245]
[1772282760265,1.29938464,79.108,79.08,6.38898263]
[1772282761458,1.29938464,79.106,79.08,6.38898263]
[1772282762255,1.29938464,79.106,79.056,3.69383402]
[1772282762256,1.29938464,79.089,79.05,6.38898263]
[1772282763161,1.29938464,79.079,79.053,12.64959407]
[1772282763350,1.29938464,79.079,79.04,6.58898263]
[1772282763873,1.29938464,79.079,79.051,12.64992716]
[1772282764751,1.29938464,79.079,79.054,12.64949917]
[1772282766566,1.29938464,79.079,79.057,12.64896231]
[1772282769554,12.64305153,79.095,79.071,1.06263397]
[1772282771549,1.13444422,79.092,79.071,1.06263397]
[1772282773965,1.13444422,79.09,79.071,1.06263397]
[1772282774167,1.13444422,79.09,79.067,1.04906347]
[1772282774877,1.13444422,79.089,79.06,0.2]
[1772282776072,1.13444422,79.078,79.06,0.2]
[1772282779487,1.13444422,79.076,79.06,0.2]
[1772282779864,1.13444422,79.076,79.042,1.04530947]
[1772282780177,1.13444422,79.069,79.04,0.2]
[1772282781185,1.13444422,79.067,79.04,0.2]
[1772282782181,1.13444422,79.065,79.04,0.2]
[1772282784873,1.13444422,79.063,79.04,0.2]
[1772282788991,1.13444422,79.059,79.04,0.2]
[1772282789692,1.13444422,79.059,79.028,1.04014454]
[1772282791991,1.13444422,79.049,79.02,0.2]
[1772282792494,1.13444422,79.049,79.02,1.23853883]
[1772282792898,1.13444422,79.049,79.021,1.03801584]
[1772282794080,1.13444422,79.048,79.023,1.03749886]
[1772282795600,1.13444422,79.046,79.023,1.03749886]
[1772282795783,1.13444422,79.046,79.02,0.2]
[1772282796100,12.65070148,79.047,79.01,0.2]
[1772282796101,1.16793364,79.029,79.01,0.2]
[1772282796992,1.16793364,79.029,79.0,0.2]
[1772282797310,1.13444422,79.009,78.99,0.2]
[1772282797797,1.13444422,79.007,78.99,0.2]
[1772282798184,1.13444422,79.007,78.98,0.2]
[1772282798598,12.65694613,79.008,78.981,0.399007]
[1772282798599,1.13444422,79.005,78.981,0.399007]
[1772282798807,1.13444422,79.005,78.982,0.399007]
[1772282799917,1.13444422,79.003,78.98,0.2]
[1772282800407,1.13444422,78.999,78.98,0.2]
[1772282800710,1.06125818,78.989,78.97,0.2]
[1772282802482,1.06125818,78.979,78.96,0.2]
[1772282802677,1.06125818,78.979,78.961,0.38589247]
[1772282802896,1.06125818,78.979,78.96,0.2]
[1772282803102,1.06125818,78.979,78.96,0.5694774]
[1772282803303,1.06125818,78.979,78.96,0.2]
[1772282803688,1.06125818,78.979,78.95,0.2]
[1772282804298,1.11350514,78.969,78.95,0.2]
[1772282805001,12.66098074,78.983,78.952,0.35343725]
[1772282805500,1.11350514,78.982,78.952,0.35343725]
[1772282807101,1.11350514,78.98,78.954,0.33776345]
[1772282808578,1.11350514,78.979,78.954,0.33776345]
[1772282810212,1.11350514,78.979,78.95,6.60032546]
[1772282810213,1.11350514,78.969,78.951,12.66608402]
[1772282810392,12.6617539,78.978,78.952,0.31492143]
[1772282810393,1.11350514,78.974,78.952,0.31492143]
[1772282810710,1.11350514,78.986,78.952,0.31492143]
[1772282811210,1.11350514,78.984,78.952,0.31492143]
[1772282811589,1.11350514,78.999,78.961,0.30748165]
[1772282812108,1.11350514,78.997,78.963,0.30012733]
[1772282812703,1.11350514,78.989,78.963,0.30012733]
[1772282813204,1.11350514,78.979,78.956,0.29285749]
[1772282814711,1.11350514,78.977,78.956,0.29285749]
[1772282816007,1.11350514,78.969,78.943,0.27154512]
[1772282816307,1.11350514,78.959,78.94,0.47154512]
[1772282816613,1.11350514,78.959,78.931,0.27154512]
[1772282816903,1.11350514,78.955,78.931,0.26460357]
[1772282817510,6.40032546,78.95,78.931,0.26460357]
[1772282818593,12.66640489,78.949,78.931,0.26460357]
[1772282819709,1.11350514,78.955,78.932,0.25095874]
[1772282820015,1.11350514,78.959,78.932,0.25095874]
[1772282820223,6.40032546,78.95,78.932,0.25095874]
[1772282820905,6.40032546,78.95,78.933,0.23762555]
[1772282822101,6.40032546,78.96,78.933,0.23762555]
[1772282822389,1.11350514,78.968,78.933,0.23762555]
[1772282822594,8.9858206,79.013,78.941,0.2310736]
[1772282822595,7.5138306,78.98,78.941,0.2310736]
[1772282822912,1.11350514,78.979,78.941,0.2310736]
[1772282823492,1.11350514,78.977,78.943,0.2245969]
[1772282824101,1.11350514,78.969,78.935,0.21819459]
[1772282824295,6.40032546,78.97,78.935,0.21819459]
[1772282824694,1.11350514,78.969,78.935,0.21819459]
[1772282825413,1.11350514,78.969,78.937,0.21186582]
[1772282825611,1.11350514,78.967,78.937,0.21186582]
[1772282826411,1.11350514,78.959,78.931,0.20560974]
[1772282826719,1.11350514,78.949,78.93,0.1]
[1772282827516,6.40032546,78.95,78.93,0.29942552]
[1772282827696,6.40032546,78.95,78.931,0.19942552]
[1772282828419,7.5138306,78.95,78.931,0.19942552]
[1772282829110,1.11350514,78.948,78.93,0.1]
[1772282829299,1.11350514,78.939,78.93,0.1]
[1772282829501,1.11350514,78.945,78.93,0.1]
[1772282830008,12.66640489,78.949,78.92,0.1]
[1772282830009,1.11350514,78.939,78.92,0.1]
[1772282830400,0.97922064,78.929,78.901,0.17539084]
[1772282831013,0.97922064,78.939,78.901,0.17539084]
[1772282832015,6.40032546,78.93,78.901,0.17539084]
[1772282832211,0.97922064,78.929,78.901,0.17539084]
[1772282833502,0.97922064,78.927,78.901,0.17539084]
[1772282833691,0.97922064,78.938,78.901,0.17539084]
[1772282834012,6.40032546,78.93,78.901,0.17539084]
[1772282834197,0.97922064,78.929,78.9,0.1]
[1772282834406,0.97922064,78.929,78.901,0.15244153]
[1772282835505,0.97922064,78.927,78.901,0.15244153]
[1772282835729,0.97922064,78.919,78.9,0.1]
[1772282835914,0.97922064,78.919,78.881,31.6930497]
[1772282835915,0.97922064,78.909,78.886,12.67637793]
[1772282836223,0.97922064,78.909,78.887,0.14135849]
[1772282836602,0.97922064,78.909,78.886,12.67637793]
[1772282837500,0.97922064,78.909,78.881,12.81868256]
[1772282837928,63.02813298,78.963,78.901,0.97648819]
[1772282837929,12.66830397,78.938,78.901,0.97648819]
[1772282838104,6.40032546,78.94,78.901,0.97648819]
[1772282838298,12.66800947,78.939,78.901,0.97648819]
[1772282839212,19.06831903,78.94,78.901,0.97648819]
[1772282839607,6.40032546,78.94,78.903,0.97648819]
[1772282839808,0.97922064,78.957,78.911,0.97648819]
[1772282840111,0.97922064,78.949,78.911,0.97648819]
[1772282841220,0.97922064,78.956,78.921,0.97648819]
[1772282841606,0.97922064,78.956,78.923,0.97648819]
[1772282842120,0.97922064,78.962,78.931,0.97648819]
[1772282842924,12.66332012,78.969,78.922,44.34758368]
[1772282842925,0.97922064,78.969,78.942,0.97648819]
[1772282843833,0.97922064,78.969,78.944,0.97648819]
[1772282845519,0.97922064,78.967,78.932,0.97648819]
[1772282845705,0.97922064,78.959,78.923,0.97648819]
[1772282846720,0.97922064,78.957,78.924,12.67041711]
[1772282846926,0.97922064,78.957,78.925,0.97648819]
[1772282847707,6.40032546,78.95,78.92,6.40032546]
[1772282847905,0.97922064,78.939,78.907,13.64961508]
[1772282848211,0.97922064,78.939,78.92,7.37681365]
[1772282848577,0.97922064,78.945,78.921,0.97648819]
[1772282848710,0.97922064,78.945,78.911,0.97648819]
[1772282849337,0.97922064,78.953,78.921,0.97648819]
[1772282849828,0.97922064,78.949,78.909,13.64924376]
[1772282850009,0.97922064,78.949,78.91,6.40032546]
[1772282850209,0.97922064,78.949,78.911,0.97648819]
[1772282851325,0.97922064,78.947,78.913,0.97648819]
[1772282851710,0.97922064,78.947,78.921,0.97648819]
[1772282852517,0.97922064,78.958,78.931,0.97648819]
[1772282853929,0.97922064,78.956,78.92,6.40032546]
[1772282854134,0.97922064,78.956,78.921,0.95959015]
[1772282856035,0.97922064,78.956,78.923,0.93866328]
[1772282857045,0.97922064,78.954,78.923,0.93866328]
[1772282857917,0.97922064,78.952,78.924,12.67041711]
[1772282858415,0.97922064,78.952,78.931,0.91821437]
[1772282859315,0.97922064,78.952,78.931,13.58741737]
[1772282860629,0.97922064,78.952,78.931,12.669203]
[1772282863740,0.97922064,78.952,78.931,0.85025184]
[1772282863947,0.97922064,78.952,78.925,0.84098382]
[1772282864144,0.87376887,78.957,78.925,0.84098382]
[1772282864352,0.87376887,78.957,78.93,6.41454665]
[1772282864645,0.87376887,78.957,78.925,0.84098382]
[1772282866218,0.87376887,78.955,78.927,0.82276591]
[1772282868241,0.87376887,78.953,78.928,12.66977498]
[1772282868432,0.87376887,78.953,78.929,0.8049641]
[1772282870752,0.87376887,78.959,78.931,0.78756889]
[1772282871843,0.87376887,78.958,78.932,12.66913292]
[1772282872046,0.87376887,78.958,78.933,0.77057098]
[1772282874344,0.87376887,78.958,78.911,1.0]
[1772282874345,0.87376887,78.958,78.94,6.41454665]
[1772282876351,0.87376887,78.958,78.94,19.08232602]
[1772282877646,0.87376887,78.956,78.921,1.72975539]
[1772282877945,0.87376887,78.956,78.923,0.72975539]
[1772282878329,0.87376887,78.956,78.93,6.41454665]
[1772282879549,0.87376887,78.954,78.927,0.72187139]
[1772282879746,0.87376887,78.954,78.922,12.67073819]
[1772282880146,0.87376887,78.954,78.921,0.71407795]
[1772282880328,0.87376887,78.954,78.886,31.69113549]
[1772282880532,0.87376887,78.949,78.91,6.41454665]
[1772282881149,0.87376887,78.949,78.9,6.41454665]
[1772282881333,0.87376887,78.937,78.901,12.67411059]
[1772282881951,0.87376887,78.937,78.89,6.41454665]
[1772282882133,0.87376887,78.929,78.89,6.41454665]
[1772282882336,0.87376887,78.919,78.88,6.41454665]
[1772282883453,0.87376887,78.909,78.87,6.41454665]
[1772282884342,0.87376887,78.909,78.862,3.69383402]
[1772282884544,0.87376887,78.909,78.87,6.41454665]
[1772282884950,0.87376887,78.909,78.88,6.41454665]
[1772282886166,0.87376887,78.908,78.87,6.41454665]
[1772282886866,0.87376887,78.899,78.863,12.68021759]
[1772282887340,0.87376887,78.899,78.86,6.41454665]
[1772282887539,0.87376887,78.899,78.858,12.68088304]
[1772282887540,0.87376887,78.889,78.853,12.68178302]
[1772282887945,0.87376887,78.889,78.86,6.41454665]
[1772282888242,0.87376887,78.887,78.85,0.1]
[1772282888442,0.87376887,78.887,78.85,6.51454665]
[1772282888851,12.67619916,78.888,78.85,6.51454665]
[1772282888852,0.87376887,78.879,78.85,6.51454665]
[1772282889858,0.87376887,78.869,78.85,0.1]
[1772282890358,0.87376887,78.88,78.86,6.41454665]
[1772282890543,0.74053416,78.886,78.861,0.26448451]
[1772282891151,0.74053416,78.886,78.86,6.41454665]
[1772282891461,0.74053416,78.879,78.841,0.25777785]
[1772282892562,0.74053416,78.877,78.841,0.25777785]
[1772282893342,0.74053416,78.877,78.842,12.68359503]
[1772282893582,0.74053416,78.877,78.842,12.92818977]
[1772282894068,0.74053416,78.877,78.843,0.24459474]
[1772282894362,0.74053416,78.877,78.845,0.23811654]
[1772282894560,0.74053416,78.877,78.851,0.23811654]
[1772282896081,0.74053416,78.889,78.851,0.23811654]
[1772282896254,37.99,78.964,78.861,0.22538249]
[1772282896255,0.74053416,78.887,78.861,0.22538249]
[1772282896562,13.41496181,78.9,78.871,0.22538249]
[1772282897067,13.41496181,78.9,78.862,12.68037838]
[1772282897068,0.74053416,78.899,78.864,0.21912496]
[1772282899170,19.0889743,78.9,78.86,6.41454665]
[1772282899171,0.74053416,78.897,78.86,6.41454665]
[1772282899358,0.74053416,78.897,78.86,6.62137134]
[1772282899666,0.74053416,78.897,78.861,0.20682469]
[1772282899863,0.74053416,78.897,78.871,0.20078031]
[1772282901766,0.74053416,78.897,78.872,12.67877066]
[1772282902161,0.74053416,78.897,78.872,12.86766969]
[1772282903256,6.41454665,78.91,78.874,12.67844917]
[1772282903455,13.41335981,78.909,78.881,0.18306054]
[1772282903854,0.74053416,78.908,78.881,0.18306054]
[1772282905468,0.74053416,78.908,78.883,0.17158398]
[1772282906769,31.67306639,78.932,78.895,0.16594437]
[1772282906973,0.74053416,78.917,78.895,0.16594437]
[1772282907172,0.74053416,78.916,78.882,12.83753289]
[1772282907375,0.74053416,78.909,78.875,12.83850234]
[1772282907562,0.74053416,78.907,78.875,0.16036954]
[1772282909564,0.74053416,78.905,78.871,12.67893141]
[1772282911474,0.74053416,78.905,78.881,12.67732407]
[1772282912358,0.74053416,78.904,78.881,12.67732407]
[1772282912879,0.74053416,78.904,78.87,0.1282398]
[1772282913081,0.74053416,78.904,78.871,0.1282398]
[1772282913280,0.74053416,78.904,78.871,12.67893141]
[1772282913675,0.74053416,78.902,78.871,12.67893141]
[1772282915879,0.74053416,78.9,78.871,12.67893141]
[1772282916099,0.74053416,78.899,78.86,6.42328429]
[1772282916777,0.74053416,78.899,78.849,32.70586774]
[1772282916778,0.74053416,78.899,78.871,0.11299102]
[1772282917670,0.74053416,78.899,78.88,6.42328429]
[1772282918070,0.74053416,78.898,78.88,6.42328429]
[1772282918477,0.74053416,78.898,78.875,12.678228]
[1772282919484,0.74053416,78.896,78.871,12.67893141]
[1772282919782,0.74053416,78.896,78.865,12.67979761]
[1772282922174,0.65970758,78.894,78.861,12.68053917]
[1772282922765,0.65970758,78.894,78.86,6.42328429]
[1772282923783,0.65970758,78.894,78.859,12.68078253]
[1772282924085,0.65970758,78.892,78.861,0.06581495]
[1772282924872,0.65970758,78.892,78.86,6.42328429]
[1772282925091,0.65970758,78.89,78.861,12.68053917]
[1772282926387,63.36281072,78.911,78.861,12.68053917]
[1772282926388,0.65970758,78.908,78.88,6.42328429]
[1772282927170,0.65970758,78.906,78.88,6.47597689]
[1772282927372,0.65970758,78.906,78.87,6.42328429]
[1772282929390,0.65970758,78.904,78.88,6.42328429]
[1772282931998,0.65970758,78.904,78.881,12.67732407]
[1772282932202,0.65970758,78.902,78.877,0.0318078]
[1772282932897,0.65970758,78.902,78.874,12.67831946]
[1772282933103,0.65970758,78.902,78.87,6.42328429]
[1772282933792,0.65970758,78.902,78.87,6.45105795]
[1772282934196,0.65970758,78.9,78.864,12.70372613]
[1772282934774,0.65970758,78.9,78.86,6.42328429]
[1772282934775,0.65970758,78.899,78.86,6.42328429]
[1772282936086,0.65970758,78.897,78.86,6.42328429]
[1772282938103,0.65970758,78.897,78.861,12.68053917]
[1772282938307,0.65970758,78.895,78.861,12.68053917]
[1772282939499,0.65970758,78.889,78.856,12.68132153]
[1772282940085,0.65970758,78.889,78.86,6.42328429]
[1772282941590,0.65970758,78.887,78.861,12.68053917]
[1772282942497,0.65970758,78.887,78.86,6.42328429]
[1772282942697,0.65970758,78.887,78.856,12.68121863]
[1772282944308,0.65970758,78.885,78.851,12.68214734]
[1772282945793,0.65970758,78.879,78.846,12.68282152]
[1772282946406,0.65970758,78.877,78.85,6.42328429]
[1772282948200,31.68690685,78.897,78.861,0.63224225]
[1772282948509,12.67491381,78.896,78.861,0.63224225]
[1772282948710,6.42328429,78.89,78.861,0.63224225]
[1772282949610,12.67603848,78.889,78.861,0.63224225]
[1772282950012,12.67603848,78.889,78.863,0.62557411]
[1772282950214,0.65899594,78.888,78.863,0.62557411]
[1772282950411,31.6833491,78.906,78.87,6.42328429]
[1772282950596,31.6833491,78.906,78.871,0.61655729]
[1772282950597,0.59218732,78.901,78.871,0.61655729]
[1772282952309,0.59218732,78.899,78.872,12.67877066]
[1772282952907,0.59218732,78.899,78.873,0.61585637]
[1772282953315,0.59218732,78.899,78.872,12.67877066]
[1772282954105,0.59218732,78.899,78.868,13.29210283]
[1772282954305,0.59218732,78.899,78.868,0.61269124]
[1772282955217,0.59218732,78.897,78.868,0.61269124]
[1772282956213,0.59218732,78.897,78.868,12.67939723]
[1772282956419,0.59218732,78.897,78.869,0.60341234]
[1772282957005,0.59218732,78.897,78.864,13.28042634]